bitfinex-derivatives/quotes_ETHF0:USTF0_20250110
["timestamp","ask_amount","ask_price","bid_price","bid_amount"]
[1736479766242,0.30774,3250.0,3249.7,1.22106]
[1736479766449,0.30774,3250.0,3249.7,0.9133]
[1736479767648,0.90947581,3249.8,3249.7,0.4593]
[1736479767951,1.21722581,3249.8,3249.7,0.4593]
[1736479768346,0.90947581,3249.8,3249.5,0.9261]
[1736479768548,0.30777,3249.6,3249.5,1.37]
[1736479770154,0.30777,3249.7,3249.5,1.37]
[1736479771746,0.90947581,3249.8,3249.5,1.37]
[1736479771948,0.30777,3249.6,3249.5,1.37]
[1736479773141,0.90947581,3249.8,3249.5,1.37]
[1736479773353,0.30774,3249.9,3249.6,0.30777]
[1736479773554,0.30774,3249.9,3249.5,2.27947581]
[1736479773555,0.90947581,3249.8,3249.5,1.67778]
[1736479773757,0.90947581,3249.8,3249.5,1.37]
[1736479773955,0.90947581,3249.8,3249.6,0.30777]
[1736479774759,0.90947581,3249.8,3249.5,1.67778]
[1736479777059,0.90947581,3249.8,3249.6,0.30777]
[1736479778064,11.79828372,3250.0,3249.9,0.30774]
[1736479778354,11.79828372,3250.0,3249.5,1.37]
[1736479778355,11.79828372,3250.0,3249.8,0.30775]
[1736479778758,11.79828372,3250.0,3249.9,0.4754]
[1736479779556,10.88880791,3250.0,3249.9,0.78314]
[1736479781356,0.90947581,3250.1,3249.9,0.78314]
[1736479781659,0.90947581,3250.1,3250.0,0.9161]
[1736479786657,0.90947581,3250.1,3250.0,1.22383]
[1736479788052,1.21717581,3250.4,3250.0,0.9161]
[1736479788257,1.21717581,3250.4,3250.0,1.22383]
[1736479789569,4.14944784,3250.6,3250.0,1.82557581]
[1736479789866,0.90947581,3250.4,3250.1,0.30772]
[1736479790058,1.21717581,3250.4,3250.1,0.30772]
[1736479790754,0.90947581,3250.4,3250.2,0.30771]
[1736479790959,0.90947581,3250.4,3250.1,0.30772]
[1736479791465,0.90947581,3250.4,3250.0,1.82557581]
[1736479791766,0.90947581,3250.4,3250.1,0.30772]
[1736479791963,1.21717581,3250.4,3250.0,1.82557581]
[1736479792166,0.90947581,3250.2,3250.0,0.9161]
[1736479792466,0.90947581,3250.2,3250.0,1.22383]
[1736479794359,0.90947581,3250.2,3250.0,4.43163]
[1736479796764,0.90947581,3250.2,3250.0,4.1239]
[1736479797268,0.30772,3250.1,3250.0,4.1239]
[1736479798068,0.30772,3250.1,3250.0,3.2078]
[1736479798264,0.30772,3250.1,3249.7,0.4594]
[1736479798265,3.2078,3250.1,3249.7,0.4594]
[1736479798457,1.21722581,3249.8,3249.7,0.4594]
[1736479800367,0.90947581,3249.8,3249.4,4.1346]
[1736479800676,0.30777,3249.7,3249.5,0.30778]
[1736479801769,3.2078,3250.1,3249.6,0.90947581]
[1736479801770,0.90947581,3250.0,3249.6,0.90947581]
[1736479801972,3.2078,3250.1,3249.6,0.90947581]
[1736479802273,0.30773,3250.1,3249.9,0.30774]
[1736479802475,0.30773,3250.1,3250.0,0.4777]
[1736479802671,0.30773,3250.1,3250.0,0.9377]
[1736479803675,0.9199,3250.3,3250.0,0.9377]
[1736479803876,0.90947581,3250.4,3250.0,0.9377]
[1736479804072,0.90947581,3250.4,3250.2,0.30771]
[1736479804477,0.90947581,3250.4,3250.1,0.30772]
[1736479804877,3.51549,3250.5,3250.0,0.9377]
[1736479805079,0.90947581,3250.4,3250.2,0.30771]
[1736479805782,0.90947581,3250.4,3250.3,0.30771]
[1736479805981,0.90947581,3250.4,3250.2,0.30771]
[1736479806980,3.2078,3250.5,3250.3,0.30771]
[1736479807182,5.00675581,3250.6,3250.3,0.30771]
[1736479807478,1.18628,3250.6,3250.4,0.4661]
[1736479808277,15.71999846,3250.9,3250.4,0.4661]
[1736479808476,15.71999846,3250.9,3250.6,0.30767]
[1736479808674,16.2381576,3250.9,3250.6,0.30767]
[1736479808874,16.5458076,3250.9,3250.6,0.30767]
[1736479809077,13.3380076,3250.9,3250.5,1.25288]
[1736479809282,12.81984846,3250.9,3250.6,40.8]
[1736479809478,0.30765,3250.9,3250.6,40.8]
[1736479810082,11.8305424,3251.1,3250.6,40.8]
[1736479810285,11.8305424,3251.1,3251.0,0.30764]
[1736479810286,11.31238326,3251.1,3251.0,0.30764]
[1736479811173,10.88880791,3251.1,3251.0,0.30764]
[1736479811379,3.2078,3251.3,3251.0,0.30764]
[1736479811577,3.2078,3251.3,3250.6,44.0078]
[1736479811578,10.88880791,3251.5,3251.2,0.30762]
[1736479811882,10.88880791,3251.5,3251.3,0.4378]
[1736479811883,11.19640791,3251.5,3251.3,0.4378]
[1736479813585,10.88880791,3251.5,3251.3,0.4378]
[1736479813983,10.88880791,3251.5,3251.3,0.74541]
[1736479814479,10.88880791,3251.5,3251.3,0.4378]
[1736479815283,10.88880791,3251.5,3251.3,0.74541]
[1736479815786,10.88880791,3251.5,3251.3,0.4378]
[1736479817284,10.88880791,3251.5,3251.1,0.8938]
[1736479817684,0.30761,3251.3,3251.1,0.8938]
[1736479818188,0.30761,3251.4,3251.1,0.8938]
[1736479818389,0.30761,3251.4,3251.2,0.4339]
[1736479819688,10.88880791,3251.5,3251.2,0.4339]
[1736479819889,0.30761,3251.3,3251.2,0.4339]
[1736479820386,0.30763,3251.1,3250.8,0.30766]
[1736479820592,0.4633,3251.2,3250.8,1.25086]
[1736479820791,0.30763,3251.1,3250.8,1.25086]
[1736479820991,0.30761,3251.4,3251.1,0.30763]
[1736479821290,0.4633,3251.6,3251.2,0.4785]
[1736479821588,0.3076,3251.5,3251.3,0.9423]
[1736479822190,12.08862311,3251.7,3251.3,0.9423]
[1736479822385,12.08862311,3251.7,3251.6,0.30758]
[1736479822689,12.08862311,3251.7,3251.3,0.9423]
[1736479822690,12.08862311,3251.7,3251.5,0.30759]
[1736479822891,12.08862311,3251.7,3251.4,0.3076]
[1736479823087,12.08862311,3251.7,3251.5,0.30759]
[1736479823292,0.3076,3251.5,3251.3,0.9423]
[1736479823498,0.3076,3251.4,3251.3,0.9423]
[1736479823683,0.9138,3251.6,3251.3,0.9423]
[1736479823890,0.3076,3251.4,3251.3,0.9423]
[1736479824596,1.92087031,3251.4,3250.6,3.2078]
[1736479824787,5.12867031,3251.1,3250.3,0.4695]
[1736479825090,0.30771,3250.3,3250.2,40.8]
[1736479826990,0.30769,3250.5,3250.2,40.8]
[1736479827189,0.3077,3250.4,3250.2,40.8]
[1736479827498,3.2078,3250.6,3250.2,40.8]
[1736479827695,1.92087031,3250.5,3249.9,1.4214]
[1736479828000,0.30775,3249.8,3249.7,3.2078]
[1736479828199,1.92087031,3249.9,3249.7,3.2078]
[1736479828401,2.22862031,3249.9,3249.7,3.2078]
[1736479828591,0.30775,3249.9,3249.7,3.2078]
[1736479829601,0.4441,3250.0,3249.7,3.2078]
[1736479829801,0.30774,3249.9,3249.7,3.2078]
[1736479830597,0.4441,3250.0,3249.7,3.2078]
[1736479830791,0.75184,3250.0,3249.7,3.2078]
[1736479831202,0.30774,3249.9,3249.7,3.2078]
[1736479831502,0.30774,3250.0,3249.7,3.2078]
[1736479832306,0.30773,3250.0,3249.7,3.2078]
[1736479832499,0.30773,3250.0,3249.7,3.6795]
[1736479832699,3.2078,3250.1,3249.7,3.98726]
[1736479832901,3.2078,3250.1,3249.8,0.30775]
[1736479833101,3.2078,3250.1,3249.7,3.98726]
[1736479833705,3.2078,3250.1,3249.7,3.6795]
[1736479833905,3.2078,3250.1,3249.9,0.30774]
[1736479834205,0.7741,3250.4,3249.9,0.30774]
[1736479835699,14.09660791,3250.5,3250.1,0.30772]
[1736479835898,14.09660791,3250.5,3250.2,0.4728]
[1736479836407,14.09660791,3250.5,3250.2,0.78051]
[1736479836806,3.2078,3250.5,3250.2,0.78051]
[1736479837208,2.911,3250.6,3250.2,0.4728]
[1736479837512,3.6654,3250.9,3250.2,0.4728]
[1736479837711,0.30767,3250.8,3250.3,0.7739]
[1736479837905,0.30767,3250.8,3250.4,0.4367]
[1736479838813,0.30767,3250.8,3250.4,0.74439]
[1736479839008,3.6654,3250.9,3250.4,0.74439]
[1736479839009,3.6654,3250.9,3250.5,0.30769]
[1736479839313,3.2078,3250.9,3250.5,0.30769]
[1736479839509,3.2078,3250.9,3250.6,1.92087031]
[1736479839712,3.2078,3250.9,3250.7,0.30767]
[1736479839909,3.2078,3250.9,3250.7,0.75017]
[1736479840109,3.2078,3250.9,3250.7,41.55017]
[1736479841420,0.30764,3251.0,3250.7,41.55017]
[1736479841618,0.30764,3251.0,3250.7,41.55016]
[1736479842118,3.6654,3251.3,3250.7,0.4425]
[1736479842417,0.30766,3250.8,3250.7,0.4425]
[1736479842806,3.6654,3251.3,3250.7,0.4425]
[1736479843009,0.30765,3250.9,3250.7,0.4425]
[1736479843619,3.2078,3251.3,3251.1,0.30763]
[1736479843819,3.2078,3251.3,3250.7,0.4425]
[1736479844122,0.30763,3251.1,3250.8,0.30765]
[1736479844814,0.30763,3251.2,3250.9,0.30765]
[1736479845417,3.2078,3251.3,3250.7,0.4425]
[1736479845418,3.2078,3251.3,3251.1,0.30763]
[1736479845619,3.2078,3251.3,3251.2,0.4354]
[1736479845820,3.51541,3251.3,3251.2,0.4354]
[1736479848615,3.2078,3251.3,3251.2,0.4354]
[1736479849021,3.2078,3251.3,3251.2,0.74302]
[1736479850119,0.30758,3251.7,3251.4,0.30759]
[1736479850514,0.30758,3251.7,3251.3,0.30761]
[1736479850819,0.30758,3251.7,3251.4,0.3076]
[1736479851119,0.30758,3251.7,3251.2,2.35627031]
[1736479851319,0.30758,3251.7,3251.4,0.3076]
[1736479852622,3.2078,3251.8,3251.2,0.4354]
[1736479852818,3.51537,3251.8,3251.5,0.30759]
[1736479853014,3.51537,3251.8,3251.6,0.4465]
[1736479853522,3.51537,3251.8,3251.7,0.449]
[1736479853924,3.2078,3251.8,3251.7,0.449]
[1736479854521,3.2078,3251.8,3251.7,0.9147]
[1736479855619,3.2078,3251.8,3251.7,1.22227]
[1736479856015,3.2078,3251.8,3251.7,0.9147]
[1736479856216,3.2078,3251.8,3251.7,1.22227]
[1736479858126,11.19634791,3252.1,3251.7,1.22227]
[1736479858827,11.19634791,3252.1,3251.8,40.8]
[1736479859228,11.19634791,3252.1,3251.8,41.10756]
[1736479859423,0.30754,3252.1,3251.8,41.10756]
[1736479860229,0.30754,3252.1,3251.8,40.8]
[1736479860428,0.30753,3252.1,3251.8,40.8]
[1736479861532,0.75723,3252.2,3251.8,0.30756]
[1736479861927,0.4497,3252.2,3251.9,0.30755]
[1736479862420,0.75723,3252.2,3251.9,0.30755]
[1736479862726,0.4497,3252.2,3251.9,0.30755]
[1736479863033,0.75723,3252.2,3251.9,0.30755]
[1736479863426,0.4497,3252.2,3251.9,0.30755]
[1736479864236,0.75723,3252.2,3251.8,0.30756]
[1736479866137,0.30754,3252.1,3251.7,42.02227]
[1736479866729,0.4497,3252.2,3251.7,41.7147]
[1736479866934,0.75723,3252.2,3251.8,0.30756]
[1736479867129,0.30754,3252.1,3251.8,0.30756]
[1736479867436,0.30754,3252.1,3251.7,42.02227]
[1736479868034,0.75723,3252.2,3251.8,0.30756]
[1736479868527,0.4497,3252.2,3251.7,41.7147]
[1736479868730,0.30757,3251.8,3251.6,3.2078]
[1736479869530,0.4528,3252.1,3251.6,3.2078]
[1736479869734,0.30757,3251.7,3251.6,3.2078]
[1736479870538,0.30759,3251.6,3251.4,40.8]
[1736479871032,3.2078,3251.9,3251.4,40.8]
[1736479871238,0.30758,3251.7,3251.4,41.1076]
[1736479872736,0.30758,3251.6,3251.4,40.8]
[1736479873233,0.30758,3251.7,3251.4,41.1076]
[1736479874133,0.30759,3251.6,3251.4,40.8]
[1736479874935,0.30758,3251.7,3251.4,40.8]
[1736479875540,0.30758,3251.7,3251.4,41.1076]
[1736479875736,0.30758,3251.6,3251.5,0.4471]
[1736479879441,0.30757,3251.8,3251.5,0.4471]
[1736479879642,3.2078,3252.0,3251.5,0.4471]
[1736479879845,3.2078,3252.0,3251.6,0.30758]
[1736479879846,0.30756,3251.9,3251.6,0.30758]
[1736479881048,0.30755,3252.0,3251.7,0.30756]
[1736479881240,0.30755,3252.0,3251.8,0.8896]
[1736479881543,0.30754,3252.1,3251.8,0.8896]
[1736479881745,0.30754,3252.1,3251.9,0.4625]
[1736479882940,0.4497,3252.2,3251.9,0.4625]
[1736479883143,0.4497,3252.2,3251.7,0.4685]
[1736479883144,0.30756,3251.8,3251.7,0.4685]
[1736479884144,0.464,3251.9,3251.5,0.4607]
[1736479884446,0.78278,3251.7,3251.5,0.4607]
[1736479885047,0.464,3251.9,3251.5,0.4607]
[1736479885247,0.30757,3251.8,3251.5,0.76829]
[1736479885546,3.653,3252.0,3251.5,0.4607]
[1736479885748,0.30756,3251.9,3251.6,0.30758]
[1736479885947,0.30756,3251.9,3251.5,0.76828]
[1736479886149,0.30756,3251.9,3251.6,0.30758]
[1736479887542,3.96055,3252.0,3251.6,0.30758]
[1736479887848,3.51535,3252.0,3251.6,0.30758]
[1736479888748,0.9416,3252.2,3251.5,0.4607]
[1736479889050,0.30754,3252.1,3251.8,0.30756]
[1736479889251,12.08862311,3252.0,3251.9,0.9514]
[1736479892050,12.08862311,3252.0,3251.9,1.25895]
[1736479892847,0.30753,3252.2,3251.9,1.25895]
[1736479893051,0.30753,3252.2,3252.0,0.4481]
[1736479894646,3.2078,3252.4,3252.0,0.4481]
[1736479894852,0.30753,3252.2,3252.0,0.75564]
[1736479895646,0.30749,3252.6,3252.4,0.3075]
[1736479896145,0.30749,3252.6,3252.5,0.8981]
[1736479898642,0.30749,3252.7,3252.5,0.8981]
[1736479900853,0.30749,3252.7,3252.6,40.8]
[1736479901956,3.51526,3252.9,3252.6,41.10749]
[1736479902153,3.2078,3252.9,3252.7,0.30748]
[1736479902850,3.2078,3252.9,3252.7,0.30747]
[1736479903743,3.2078,3252.9,3252.6,41.2491]
[1736479903948,12.07623205,3253.1,3252.6,44.4569]
[1736479904150,12.07623205,3253.1,3253.0,0.30745]
[1736479904547,12.07623205,3253.1,3252.6,44.4569]
[1736479904742,12.07623205,3253.1,3253.0,0.30745]
[1736479905543,12.07623205,3253.1,3253.0,0.75155]
[1736479906152,3.2078,3253.3,3253.1,0.30743]
[1736479906351,3.2078,3253.3,3253.2,0.4592]
[1736479906856,0.30742,3253.4,3253.2,0.76663]
[1736479907057,3.6543,3253.8,3253.2,0.76663]
[1736479907058,3.6543,3253.8,3253.2,0.4592]
[1736479907258,0.3074,3253.6,3253.3,0.4783]
[1736479907459,0.30739,3253.7,3253.4,0.3074]
[1736479907757,0.30739,3253.7,3253.5,0.4373]
[1736479907959,0.30739,3253.7,3253.5,0.7447]
[1736479908154,3.6543,3253.8,3253.5,0.4373]
[1736479908350,0.30741,3253.5,3253.3,0.4783]
[1736479908557,0.30742,3253.3,3253.2,0.4592]
[1736479908856,0.30742,3253.3,3253.1,0.4783]
[1736479909257,0.4568,3253.4,3253.1,0.4783]
[1736479909454,0.30742,3253.3,3253.1,0.78574]
[1736479909953,0.4568,3253.4,3253.1,0.4783]
[1736479910160,3.51518,3253.8,3253.5,0.3074]
[1736479910461,3.51518,3253.8,3253.6,0.4415]
[1736479910758,3.2078,3253.8,3253.7,0.30738]
[1736479910951,3.2078,3253.8,3253.7,0.4621]
[1736479911153,3.51517,3253.8,3253.7,0.4621]
[1736479911852,3.2078,3253.8,3253.7,0.4621]
[1736479912256,3.2078,3253.8,3253.7,0.76948]
[1736479912450,3.2078,3254.2,3253.7,7.83367031]
[1736479912762,3.2078,3254.2,3254.1,2.22822031]
[1736479912954,12.07623205,3254.5,3254.1,42.72087031]
[1736479913350,12.07623205,3254.5,3254.2,0.4705]
[1736479913550,12.07623205,3254.5,3254.4,2.22819031]
[1736479913758,12.07623205,3254.5,3254.4,5.43599031]
[1736479914054,3.51506,3255.1,3254.8,0.30728]
[1736479914263,3.51506,3255.1,3254.9,0.4705]
[1736479914858,0.30726,3255.0,3254.9,0.4705]
[1736479915867,3.2078,3255.1,3254.9,0.4705]
[1736479916056,3.2078,3255.1,3254.9,0.77777]
[1736479916366,3.2078,3255.1,3255.0,0.30726]
[1736479916658,3.2078,3255.1,3254.9,0.4705]
[1736479917259,3.2078,3255.1,3254.9,0.77777]
[1736479917658,3.2078,3255.1,3254.9,0.4705]
[1736479918165,0.30725,3255.2,3254.9,0.4705]
[1736479918355,0.30725,3255.1,3254.9,0.4705]
[1736479918556,3.2078,3255.5,3254.9,0.4705]
[1736479918854,0.00163931,3255.0,3254.9,0.4705]
[1736479919265,0.3073,3254.7,3254.5,3.3716]
[1736479919456,0.3073,3254.6,3254.5,2.918]
[1736479920567,3.2078,3254.7,3253.6,3.2078]
[1736479920763,0.30738,3253.8,3253.6,3.2078]
[1736479920966,0.30739,3253.7,3253.5,0.9118]
[1736479921161,3.2078,3254.0,3253.3,0.4412]
[1736479921660,0.3074,3253.5,3253.3,0.4412]
[1736479922167,0.30738,3253.8,3253.3,2.66949031]
[1736479922371,0.3074,3253.6,3253.4,0.4694]
[1736479922764,3.2078,3254.0,3253.4,0.4694]
[1736479922965,0.3074,3253.5,3253.4,0.4694]
[1736479923162,0.3074,3253.6,3253.4,0.4694]
[1736479923469,0.3074,3253.5,3253.4,0.4694]
[1736479924767,3.2078,3254.0,3253.5,0.3074]
[1736479924768,0.30737,3253.9,3253.5,0.3074]
[1736479924969,0.30737,3253.9,3253.4,0.4694]
[1736479924970,3.2078,3254.0,3253.7,0.30738]
[1736479925168,3.2078,3254.0,3253.6,2.39367031]
[1736479925868,3.51516,3254.0,3253.6,2.70106031]
[1736479926171,0.30737,3253.9,3253.6,2.39367031]
[1736479926474,3.2078,3254.3,3253.6,0.4728]
[1736479926674,0.3074,3253.6,3253.4,0.4694]
[1736479927266,0.3074,3253.5,3253.4,0.4694]
[1736479927474,0.30741,3253.4,3253.3,0.4412]
[1736479929370,0.30741,3253.4,3253.2,40.8]
[1736479929371,0.30742,3253.3,3253.2,40.8]
[1736479929771,0.30747,3252.8,3252.5,1.4177]
[1736479929972,3.2078,3253.0,3252.5,1.4177]
[1736479930270,3.2078,3253.0,3252.6,41.10749]
[1736479930271,3.51525,3253.0,3252.6,41.10749]
[1736479930765,0.30746,3252.9,3252.6,40.8]
[1736479931375,3.2078,3253.0,3252.6,40.8]
[1736479931566,3.2078,3253.0,3252.7,0.30748]
[1736479931968,0.30745,3253.1,3252.7,0.30748]
[1736479932782,0.30742,3253.3,3252.6,41.10749]
[1736479932974,0.30745,3253.1,3252.8,3.2078]
[1736479933169,0.30742,3253.3,3252.8,3.2078]
[1736479933376,0.30746,3252.9,3252.8,3.2078]
[1736479933578,0.30744,3253.2,3252.8,3.51527]
[1736479934178,3.2078,3253.4,3252.8,3.2078]
[1736479934880,1.92087031,3253.2,3252.5,1.4177]
[1736479935080,0.30749,3252.6,3252.5,0.4735]
[1736479937270,1.92087031,3252.6,3251.9,0.9262]
[1736479937469,0.30754,3252.0,3251.9,1.3765]
[1736479937674,3.2078,3252.5,3251.9,1.3765]
[1736479937873,0.30753,3252.2,3252.0,40.8]
[1736479938485,3.2078,3252.5,3252.0,40.8]
[1736479938675,0.30753,3252.2,3252.0,40.8]
[1736479938984,0.30754,3252.1,3252.0,40.8]
[1736479939177,3.2078,3252.5,3251.9,0.9244]
[1736479939481,0.30758,3251.7,3251.5,0.472]
[1736479939682,0.30755,3251.9,3251.6,40.8]
[1736479940073,0.30756,3251.8,3251.5,1.3966]
[1736479940275,3.2078,3252.0,3251.5,1.3966]
[1736479940276,0.30755,3251.9,3251.5,1.3966]
[1736479941082,3.2078,3252.0,3251.6,0.30758]
[1736479941273,0.05135351,3252.4,3251.5,3.31747031]
[1736479941583,0.30752,3252.3,3251.8,0.30756]
[1736479941879,0.30753,3252.2,3251.8,0.30756]
[1736479942284,0.05135351,3252.4,3251.5,3.31747031]
[1736479942484,3.2078,3252.5,3251.5,3.31747031]
[1736479942687,0.30753,3252.2,3251.5,3.31747031]
[1736479942878,3.2078,3252.5,3251.5,3.31747031]
[1736479943077,0.30752,3252.3,3251.9,0.30755]
[1736479943274,3.2078,3252.5,3251.9,0.30755]
[1736479943484,0.30752,3252.3,3251.9,0.30755]
[1736479943885,0.30752,3252.3,3251.8,3.2078]
[1736479944389,0.30752,3252.3,3251.9,0.30755]
[1736479944588,3.2078,3252.5,3251.8,3.2078]
[1736479944785,1.92087031,3252.3,3251.8,3.2078]
[1736479944983,0.30755,3251.9,3251.8,3.2078]
[1736479946490,0.30758,3251.6,3251.5,1.3966]
[1736479947385,3.2078,3252.1,3251.5,1.3966]
[1736479947586,0.30758,3251.6,3251.5,1.3966]
[1736479947793,0.30758,3251.7,3251.5,1.3966]
[1736479948693,0.30758,3251.6,3251.5,1.3966]
[1736479948889,0.30758,3251.6,3251.5,0.9246]
[1736479950886,3.2078,3251.7,3251.5,0.9246]
[1736479951593,3.51538,3251.7,3251.5,0.9246]
[1736479951987,3.2078,3251.7,3251.5,0.9246]
[1736479952188,3.51538,3251.7,3251.5,0.9246]
[1736479952491,3.2078,3251.7,3251.5,0.9246]
[1736479953089,0.30758,3251.6,3251.5,0.9246]
[1736479954194,3.51538,3251.7,3251.5,0.9246]
[1736479954591,3.2078,3251.7,3251.5,0.9246]
[1736479954793,3.2078,3251.7,3251.5,1.23218]
[1736479955191,4.4878,3252.1,3251.5,0.9246]
[1736479955391,0.30756,3251.9,3251.6,0.30758]
[1736479955795,0.30756,3251.9,3251.7,0.4676]
[1736479956992,0.30756,3251.8,3251.7,0.4676]
[1736479957198,0.30758,3251.6,3251.0,0.30763]
[1736479957499,1.92087031,3251.1,3250.7,1.3928]
[1736479957702,1.92087031,3251.4,3250.9,0.30765]
[1736479957899,0.3076,3251.4,3251.1,0.30763]
[1736479958397,0.3076,3251.5,3250.9,0.30765]
[1736479958596,1.92087031,3251.7,3250.7,4.6006]
[1736479958805,0.30764,3251.0,3250.8,0.30766]
[1736479960207,0.30761,3251.4,3250.7,4.6006]
[1736479960398,5.12867031,3251.7,3250.7,4.6006]
[1736479960593,0.3076,3251.4,3251.1,0.30762]
[1736479960799,5.12867031,3251.7,3250.7,4.6006]
[1736479961003,0.30762,3251.2,3251.0,0.30763]
[1736479961496,0.30762,3251.2,3250.7,4.6006]
[1736479961692,0.30762,3251.2,3250.9,0.30765]
[1736479961901,0.30761,3251.3,3251.1,0.30763]
[1736479962203,0.30762,3251.2,3251.0,0.30764]
[1736479962597,0.30762,3251.3,3251.0,0.30763]
[1736479964905,3.2078,3251.6,3250.8,3.2078]
[1736479964906,3.2078,3251.6,3250.9,0.30764]
[1736479965100,0.30763,3251.1,3250.9,0.30764]
[1736479965301,0.30763,3251.2,3250.9,0.30764]
[1736479966701,0.30763,3251.2,3250.8,3.2078]
[1736479967004,0.30762,3251.3,3251.0,0.30764]
[1736479968803,0.30762,3251.3,3251.1,0.30763]
[1736479969005,0.30762,3251.3,3251.0,0.30763]
[1736479969405,3.2078,3251.6,3251.0,0.30763]
[1736479969704,0.30762,3251.2,3251.0,0.30763]
[1736479971602,0.30762,3251.3,3251.1,0.30763]
[1736479971909,0.30762,3251.2,3251.0,0.30764]
[1736479973308,0.30762,3251.2,3250.8,3.2078]
[1736479973309,0.30763,3251.1,3250.9,0.30764]
[1736479973507,0.30763,3251.1,3250.8,3.2078]
[1736479973508,0.30765,3251.0,3250.8,3.51546]
[1736479973802,1.92087031,3251.4,3250.8,3.2078]
[1736479974006,0.30765,3250.9,3250.8,3.2078]
[1736479975100,0.30761,3251.3,3250.8,3.51545]
[1736479975405,0.30762,3251.3,3251.1,0.30763]
[1736479975605,0.30762,3251.2,3251.0,0.30763]
[1736479976501,0.30759,3251.5,3251.1,0.30762]
[1736479976707,0.30761,3251.3,3251.1,0.30762]
[1736479976906,0.30761,3251.3,3251.2,0.4779]
[1736479979018,3.2078,3251.6,3251.0,0.30763]
[1736479979316,0.30762,3251.2,3251.0,0.30763]
[1736479979509,0.30762,3251.3,3251.0,0.30763]
[1736479979814,0.30762,3251.3,3251.1,0.30762]
[1736479980016,0.30761,3251.4,3251.1,0.30763]
[1736479980210,3.2078,3251.6,3250.8,3.6857]
[1736479980412,0.30762,3251.2,3251.0,0.30763]
[1736479980611,0.30762,3251.3,3251.0,0.30763]
[1736479981309,0.30762,3251.3,3250.8,3.6857]
[1736479981517,0.30759,3251.5,3250.8,3.6857]
[1736479981710,3.2078,3251.6,3251.5,0.30759]
[1736479984020,3.2078,3251.6,3250.8,5.60657031]
[1736479984021,0.3076,3251.5,3250.8,5.60657031]
[1736479984313,0.30762,3251.3,3251.1,0.30763]
[1736479984520,0.30759,3251.5,3251.0,0.30763]
[1736479984823,0.30765,3250.9,3250.8,3.6857]
[1736479985113,0.30767,3250.8,3250.5,0.30768]
[1736479985318,0.30764,3251.0,3250.5,0.30769]
[1736479985617,0.30767,3250.8,3250.5,0.30769]
[1736479985819,0.30767,3250.8,3250.4,3.2078]
[1736479985820,0.30769,3250.5,3250.4,3.2078]
[1736479986508,1.92087031,3250.8,3250.4,3.2078]
[1736479986819,1.92087031,3250.8,3250.4,3.51549]
[1736479986820,0.30767,3250.7,3250.4,3.51549]
[1736479987819,1.92087031,3250.8,3250.4,3.2078]
[1736479987820,0.30768,3250.6,3250.4,3.2078]
[1736479988529,0.30768,3250.6,3249.7,0.7846485]
[1736479988530,5.12867031,3250.5,3249.6,3.51556]
[1736479988821,1.92087031,3250.0,3249.7,0.475]
[1736479989012,2.22858031,3250.3,3249.9,0.30774]
[1736479989217,1.92087031,3250.3,3249.9,0.30774]
[1736479989419,0.30772,3250.2,3250.0,0.4449]
[1736479989714,1.92087031,3250.3,3250.0,0.4449]
[1736479989920,2.22858031,3250.3,3250.0,0.4449]
[1736479990114,1.92087031,3250.3,3250.0,0.4449]
[1736479990323,1.92087031,3250.3,3249.8,40.8]
[1736479990524,0.30774,3249.9,3249.8,40.8]
[1736479991011,2.22861031,3250.0,3249.8,40.8]
[1736479991217,1.92087031,3250.0,3249.8,40.8]
[1736479991424,0.30772,3250.2,3249.9,0.30774]
[1736479991622,0.30772,3250.2,3249.8,40.8]
[1736479991922,0.30772,3250.2,3249.8,0.30775]
[1736479992123,1.92087031,3250.3,3249.7,0.475]
[1736479992320,2.22858031,3250.3,3249.9,0.30774]
[1736479992823,2.22858031,3250.3,3249.7,0.475]
[1736479992824,2.22858031,3250.3,3250.0,0.30773]
[1736479993225,0.3077,3250.4,3250.1,0.4355]
[1736479993419,3.2078,3250.5,3250.1,0.9002]
[1736479993725,3.2078,3250.5,3250.2,0.30771]
[1736479993920,3.51549,3250.5,3250.3,0.4432]
[1736479994122,0.3077,3250.4,3250.3,0.4432]
[1736479994420,3.2078,3250.5,3250.1,0.9002]
[1736479994614,1.92087031,3250.3,3249.7,0.4443]
[1736479994825,0.30774,3250.0,3249.7,0.75206]
[1736479995023,0.30774,3250.0,3249.7,1.21676]
[1736479995521,0.30773,3250.1,3249.7,1.21676]
[1736479996024,0.30773,3250.1,3249.8,0.4566]
[1736479997422,1.92087031,3250.3,3249.8,0.4566]
[1736479997623,3.2078,3250.5,3249.8,0.4566]
[1736479997925,3.51549,3250.5,3249.9,0.30774]
[1736479998126,3.51549,3250.5,3250.1,0.30772]
[1736479998924,0.3077,3250.4,3250.0,0.30773]
[1736479999123,1.92087031,3250.6,3249.8,0.4566]
[1736479999331,0.30773,3250.1,3249.8,0.76435]
[1736479999529,0.30774,3250.0,3249.8,0.4566]
[1736480000730,0.30774,3250.0,3249.8,0.76435]
[1736480001633,0.30773,3250.1,3249.8,0.76435]
[1736480002132,0.30773,3250.1,3249.9,0.30774]
[1736480002635,0.3077,3250.4,3250.1,0.30772]
[1736480003029,3.2078,3251.3,3250.2,2.04929]
[1736480003228,0.30761,3251.4,3251.1,0.30762]
[1736480003427,3.2078,3251.9,3251.2,0.4554]
[1736480003630,3.2078,3251.9,3251.5,0.30759]
[1736480003931,0.30753,3252.2,3251.4,3.2078]
[1736480003932,0.30754,3252.1,3251.4,3.2078]
[1736480004121,0.30754,3252.1,3251.8,0.30756]